fUSD/lending_fUSD_20240222
["ID","MTS","AMOUNT","RATE_DAILY","PERIOD"]
[314910516,1708635058857,-156.22,0.00033013,4]
[314910517,1708635058868,-500.0,0.00033013,4]
[314910518,1708635058880,-360.16424648,0.00033013,4]
[314910519,1708635058892,-500.0,0.00033013,4]
[314910520,1708635058904,-500.0,0.00033013,4]
[314910521,1708635058916,-500.0,0.00033013,4]
[314910522,1708635058927,-500.0,0.00033013,4]
[314910523,1708635058941,-500.0,0.00033013,4]
[314910524,1708635058952,-519.14,0.00033013,4]
[314910525,1708635058964,-500.0,0.00033013,4]
[314910526,1708635058976,-500.0,0.00033013,4]
[314910527,1708635058987,-500.0,0.00033013,4]
[314910528,1708635058999,-503.74,0.00033013,4]
[314910529,1708635059010,-500.0,0.00033013,4]
[314910530,1708635059022,-500.0,0.00033013,4]
[314910531,1708635059035,-500.0,0.00033013,4]
[314910532,1708635059046,-500.0,0.00033013,4]
[314910533,1708635059058,-151.0,0.00033013,7]
[314910534,1708635059069,-151.0,0.00033013,7]
[314910535,1708635059081,-500.0,0.00033013,4]
[314910536,1708635059092,-542.16,0.00033013,4]
[314910537,1708635059103,-500.0,0.00033013,4]
[314910538,1708635059114,-858.44,0.00033013,4]
[314910539,1708635059125,-1079.66,0.00033013,4]
[314910540,1708635059137,-500.0,0.00033013,14]
[314910541,1708635059148,-500.0,0.00033013,4]
[314910542,1708635059160,-500.0,0.00033013,4]
[314910543,1708635059171,-500.0,0.00033013,4]
[314910544,1708635059183,-513.22373717,0.00033013,4]
[314910545,1708635059195,-500.0,0.00033013,4]
[314910546,1708635059206,-621.97,0.00033013,4]
[314910547,1708635059218,-500.0,0.00033013,4]
[314910548,1708635059230,-500.0,0.00033013,4]
[314910549,1708635059241,-1300.31,0.00033013,4]
[314910550,1708635059251,-500.0,0.00033013,4]
[314910551,1708635059263,-500.0,0.00033013,4]
[314910552,1708635059274,-627.87,0.00033013,4]
[314910553,1708635059285,-500.0,0.00033013,4]
[314910554,1708635059297,-500.0,0.00033013,4]
[314910555,1708635059308,-500.0,0.00033013,4]
[314910556,1708635059320,-151.0,0.00033013,2]
[314910557,1708635059331,-151.0,0.00033013,2]
[314910558,1708635059343,-682.75,0.00033013,4]
[314910559,1708635059354,-2002.64,0.00033013,4]
[314910560,1708635059366,-88.27395399,0.00033013,4]
[314910561,1708635060244,-93149.9844,0.00029896,2]
[314910562,1708635060258,-263.219,0.00031257,2]
[314910563,1708635060271,-1118.23,0.00032876,2]
[314910564,1708635060286,-500.0,0.00032876,2]
[314910565,1708635060299,-151.0,0.00032877,7]
[314910566,1708635060311,-157.984588,0.00032877,7]
[314910567,1708635060324,-157.984588,0.00032877,7]
[314910568,1708635060337,-157.984588,0.00032877,7]
[314910569,1708635060351,-157.984588,0.00032877,7]
[314910570,1708635060363,-157.984588,0.00032877,7]
[314910571,1708635060375,-157.984588,0.00032877,7]
[314910572,1708635060389,-2178.13604601,0.00033013,4]
[314910573,1708635060402,-500.0,0.00033013,4]
[314910574,1708635060414,-500.0,0.00033013,4]
[314910575,1708635060428,-500.0,0.00033013,4]
[314910576,1708635060440,-500.0,0.00033013,4]
[314910577,1708635060452,-500.0,0.00033013,4]
[314910578,1708635060465,-500.0,0.00033013,4]
[314910579,1708635060482,-500.0,0.00033013,4]
[314910580,1708635060495,-982.14,0.00033013,4]
[314910581,1708635060509,-500.0,0.00033013,4]
[314910582,1708635060522,-947.29,0.00033013,4]
[314910583,1708635060535,-500.0,0.00033013,4]
[314910584,1708635060547,-1981.38,0.00033013,4]
[314910585,1708635060560,-500.0,0.00033013,4]
[314910586,1708635060572,-500.0,0.00033013,4]
[314910587,1708635060586,-212.71750188,0.00033013,4]
[314910588,1708635060600,-500.0,0.00033013,4]
[314910589,1708635060612,-500.0,0.00033013,4]
[314910590,1708635060626,-500.0,0.00033013,4]
[314910591,1708635060639,-500.0,0.00033013,4]
[314910592,1708635060651,-500.0,0.00033013,4]
[314910593,1708635060663,-500.0,0.00033013,4]
[314910594,1708635060675,-500.0,0.00033013,4]
[314910595,1708635060688,-4201.14,0.00033013,4]
[314910596,1708635060700,-151.0,0.00033013,7]
[314910597,1708635060713,-500.0,0.00033013,4]
[314910598,1708635060725,-6347.11,0.00033013,4]
[314910599,1708635060735,-151.0,0.00033013,7]
[314910600,1708635060748,-500.0,0.00033013,4]
[314910601,1708635060762,-500.0,0.00033013,4]
[314910602,1708635060772,-711.96,0.00033013,4]
[314910603,1708635060782,-510.45,0.00033013,4]
[314910604,1708635060793,-611.83,0.00033013,4]
[314910605,1708635060804,-500.0,0.00033013,4]
[314910606,1708635060815,-500.0,0.00033013,4]
[314910607,1708635060826,-500.0,0.00033013,4]
[314910608,1708635060836,-500.0,0.00033013,4]
[314910609,1708635060847,-500.0,0.00033013,4]
[314910610,1708635060857,-500.0,0.00033013,4]
[314910611,1708635060867,-500.0,0.00033013,4]
[314910612,1708635060879,-500.0,0.00033013,4]
[314910613,1708635060891,-197.416385,0.00033013,7]
[314910614,1708635060902,-4462.31,0.00033013,4]
[314910615,1708635060912,-3872.09,0.00033013,4]
[314910616,1708635060923,-500.0,0.00033013,4]
[314910617,1708635060933,-500.0,0.00033013,4]
[314910618,1708635060942,-500.0,0.00033013,4]
[314910619,1708635060952,-500.0,0.00033013,4]
[314910620,1708635060962,-500.0,0.00033013,4]
[314910621,1708635060972,-500.0,0.00033013,4]
[314910622,1708635060982,-500.0,0.00033013,4]
[314910623,1708635060992,-2138.94,0.00033013,4]
[314910624,1708635061001,-479.57961728,0.00033013,4]
[314910625,1708635061011,-500.0,0.00033013,4]
[314910626,1708635061020,-500.0,0.00033013,4]
[314910627,1708635061029,-677.28,0.00033013,4]
[314910628,1708635061038,-500.0,0.00033013,4]
[314910629,1708635061048,-500.0,0.00033013,4]
[314910630,1708635061059,-500.0,0.00033013,4]
[314910631,1708635061070,-500.0,0.00033013,4]
[314910632,1708635061079,-500.0,0.00033013,4]
[314910633,1708635061090,-981.71,0.00033013,4]
[314910634,1708635061101,-500.0,0.00033013,4]
[314910635,1708635061110,-4200.89,0.00033013,4]
[314910636,1708635061121,-511.16,0.00033013,4]
[314910637,1708635061130,-500.0,0.00033013,4]
[314910638,1708635061142,-500.0,0.00033013,4]
[314910639,1708635061152,-500.0,0.00033013,4]
[314910640,1708635061161,-3628.37,0.00033013,4]
[314910641,1708635061173,-540.9,0.00033013,4]
[314910642,1708635061183,-500.0,0.00033013,4]
[314910643,1708635061194,-500.0,0.00033013,4]
[314910644,1708635061204,-500.0,0.00033013,4]
[314910645,1708635061214,-500.0,0.00033013,4]
[314910646,1708635061224,-541.66,0.00033013,4]
[314910647,1708635061234,-531.5069798,0.00033013,4]
[314910648,1708635061245,-500.0,0.00033013,4]
[314910649,1708635061254,-767.41,0.00033013,4]
[314910650,1708635061265,-15076.9,0.00033013,4]
[314910651,1708635061274,-500.0,0.00033013,4]
[314910652,1708635061284,-639.34,0.00033013,4]
[314910653,1708635061293,-500.0,0.00033013,4]
[314910654,1708635061303,-4376.47,0.00033013,4]
[314910655,1708635061313,-574.73,0.00033013,4]
[314910656,1708635061323,-862.76,0.00033013,4]
[314910657,1708635061332,-151.0,0.00033013,7]
[314910658,1708635061341,-500.0,0.00033013,4]
[314910659,1708635061351,-500.0,0.00033013,4]
[314910660,1708635061360,-151.0,0.00033013,7]
[314910661,1708635061370,-500.0,0.00033013,4]
[314910662,1708635061380,-500.0,0.00033013,4]
[314910663,1708635061391,-500.0,0.00033013,4]
[314910664,1708635061401,-500.0,0.00033013,4]
[314910665,1708635061411,-553.27792932,0.00033013,4]
[314910666,1708635061421,-1671.37,0.00033013,4]
[314910667,1708635061430,-500.0,0.00033013,4]
[314910668,1708635061455,-1593.07,0.00033013,4]
[314910669,1708635062219,-500.0,0.00033013,4]
[314910670,1708635062235,-500.0,0.00033013,4]
[314910671,1708635062254,-2257.01,0.00033013,4]
[314910672,1708635062278,-500.0,0.00033013,4]
[314910673,1708635062300,-500.0,0.00033013,4]
[314910674,1708635062312,-672.93,0.00033013,4]
[314910675,1708635062322,-5164.55,0.00033013,4]
[314910676,1708635062335,-1138.05,0.00033013,4]
[314910677,1708635062345,-500.0,0.00033013,4]
[314910678,1708635062354,-500.0,0.00033013,4]
[314910679,1708635062364,-768.2,0.00033013,4]
[314910680,1708635062373,-1297.81,0.00033013,4]
[314910681,1708635062382,-522.42,0.00033013,4]
[314910682,1708635062394,-2954.83,0.00033013,4]
[314910683,1708635062409,-1050.5,0.00033013,4]
[314910684,1708635062419,-500.0,0.00033013,4]
[314910685,1708635062429,-500.0,0.00033013,4]
[314910686,1708635062440,-500.0,0.00033013,4]
[314910687,1708635062450,-804.12,0.00033013,4]
[314910688,1708635062459,-500.0,0.00033013,4]
[314910689,1708635062469,-1505.96,0.00033013,4]
[314910690,1708635062479,-2103.85,0.00033013,4]
[314910691,1708635062490,-1239.84,0.00033013,4]
[314910692,1708635062500,-500.0,0.00033013,4]
[314910693,1708635062510,-1535.88,0.00033013,4]
[314910694,1708635062520,-500.0,0.00033013,4]
[314910695,1708635062530,-2700.5,0.00033013,4]
[314910696,1708635062542,-500.0,0.00033013,4]
[314910697,1708635062552,-500.0,0.00033013,4]
[314910698,1708635062562,-500.0,0.00033013,4]
[314910699,1708635062571,-500.0,0.00033013,4]
[314910700,1708635062581,-659.64,0.00033013,4]
[314910701,1708635062591,-500.0,0.00033013,4]
[314910702,1708635062601,-778.29,0.00033013,4]
[314910703,1708635062611,-12873.14,0.00033013,4]
[314910704,1708635062621,-799.18,0.00033013,4]
[314910705,1708635062631,-4792.19,0.00033013,4]
[314910706,1708635062641,-500.0,0.00033013,4]
[314910707,1708635062650,-591.94,0.00033013,4]
[314910708,1708635062660,-6786.26,0.00033013,4]
[314910709,1708635062670,-576.65,0.00033013,4]
[314910710,1708635062680,-1365.5,0.00033013,4]
[314910711,1708635062690,-500.0,0.00033013,4]
[314910712,1708635062700,-5441.22,0.00033013,4]
[314910713,1708635062711,-500.0,0.00033013,4]
[314910714,1708635062722,-500.0,0.00033013,4]
[314910715,1708635062732,-500.0,0.00033013,4]
[314910716,1708635062744,-673.19,0.00033013,4]
[314910717,1708635062757,-500.0,0.00033013,4]
[314910718,1708635062771,-8303.93,0.00033013,4]
[314910719,1708635062785,-500.0,0.00033013,4]
[314910720,1708635062795,-500.0,0.00033013,4]
[314910721,1708635062806,-649.73,0.00033013,4]
[314910722,1708635062817,-516.06,0.00033013,4]
[314910723,1708635062828,-817.7,0.00033013,4]
[314910724,1708635062839,-789.8,0.00033013,4]
[314910725,1708635062849,-1061.83,0.00033013,4]
[314910726,1708635062858,-500.0,0.00033013,2]
[314910727,1708635062868,-500.0,0.00033013,4]
[314910728,1708635062878,-850.77,0.00033013,4]
[314910729,1708635062888,-500.0,0.00033013,4]
[314910730,1708635062899,-500.0,0.00033013,4]
[314910731,1708635062910,-939.84,0.00033013,4]
[314910732,1708635062921,-500.0,0.00033013,4]
[314910733,1708635062931,-1214.17,0.00033013,4]
[314910734,1708635062943,-500.0,0.00033013,4]
[314910735,1708635062954,-1088.9,0.00033013,4]
[314910736,1708635062964,-500.0,0.00033013,4]
[314910737,1708635062974,-500.0,0.00033013,4]
[314910738,1708635062984,-3312.71,0.00033013,4]
[314910739,1708635062993,-659.74,0.00033013,4]
[314910740,1708635063003,-151.0,0.00033013,7]
[314910741,1708635063013,-151.0,0.00033013,7]
[314910742,1708635063022,-241.81380607,0.00033013,4]
[314910743,1708635063032,-586.63,0.00033013,4]
[314910744,1708635063042,-500.0,0.00033013,4]
[314910745,1708635063052,-500.0,0.00033013,4]
[314910746,1708635063063,-1706.54,0.00033013,4]
[314910747,1708635063073,-5312.69,0.00033013,4]
[314910748,1708635063083,-546.39532485,0.00033013,4]
[314910749,1708635063092,-500.0,0.00033013,4]
[314910750,1708635063102,-500.0,0.00033013,4]
[314910751,1708635063112,-500.0,0.00033013,4]
[314910752,1708635063121,-1201.84,0.00033013,4]
[314910753,1708635063143,-500.0,0.00033013,4]
[314910754,1708635063153,-2400.54,0.00033013,4]
[314910755,1708635063163,-500.0,0.00033013,4]
[314910756,1708635063174,-4219.99,0.00033013,4]
[314910757,1708635063184,-692.82,0.00033013,4]
[314910758,1708635063194,-542.69,0.00033013,4]
[314910759,1708635063204,-500.0,0.00033013,4]
[314910760,1708635063215,-500.0,0.00033013,4]
[314910761,1708635063224,-1000.0,0.00033013,7]
[314910762,1708635063235,-1116.05,0.00033013,4]
[314910763,1708635063245,-1265.81,0.00033013,4]
[314910764,1708635063254,-596.2,0.00033013,4]
[314910765,1708635063264,-500.0,0.00033013,4]
[314910766,1708635063273,-500.0,0.00033013,4]
[314910767,1708635063283,-500.0,0.00033013,4]
[314910768,1708635063292,-1110.29,0.00033013,4]
[314910769,1708635063302,-652.05,0.00033013,4]
[314910770,1708635063311,-542.52,0.00033013,4]
[314910771,1708635063321,-500.0,0.00033013,4]
[314910772,1708635063330,-518.21,0.00033013,4]
[314910773,1708635063340,-500.0,0.00033013,4]
[314910774,1708635063349,-783.92,0.00033013,4]
[314910775,1708635063359,-500.0,0.00033013,4]
[314910776,1708635063369,-5079.26,0.00033013,4]
[314910777,1708635063379,-612.94,0.00033013,4]
[314910778,1708635063389,-627.01,0.00033013,4]
[314910779,1708635063399,-500.0,0.00033013,4]
[314910780,1708635063409,-171.53129442,0.00033013,4]
[314910781,1708635063419,-500.0,0.00033013,4]
[314910782,1708635063428,-500.0,0.00033013,4]
[314910783,1708635063439,-1600.52,0.00033013,4]
[314910784,1708635063448,-563.23,0.00033013,4]
[314910785,1708635063458,-513.92,0.00033013,4]
[314910786,1708635063468,-3754.85,0.00033013,4]
[314910787,1708635063477,-500.0,0.00033013,4]
[314910788,1708635063487,-500.0,0.00033013,4]
[314910789,1708635063497,-500.0,0.00033013,4]
[314910790,1708635063506,-500.0,0.00033013,4]
[314910791,1708635063516,-500.0,0.00033013,4]
[314910792,1708635063526,-564.21,0.00033013,4]
[314910793,1708635063535,-500.0,0.00033013,4]
[314910794,1708635063546,-500.0,0.00033013,4]
[314910795,1708635063555,-1073.29,0.00033013,4]
[314910796,1708635063564,-500.0,0.00033013,4]
[314910797,1708635063574,-528.5,0.00033013,4]
[314910798,1708635063583,-1564.63,0.00033013,4]
[314910799,1708635063593,-1186.11,0.00033013,4]
[314910800,1708635063604,-500.0,0.00033013,4]
[314910801,1708635063613,-500.0,0.00033013,4]
[314910802,1708635063623,-500.0,0.00033013,4]
[314910803,1708635063634,-500.0,0.00033013,4]
[314910804,1708635063644,-660.46,0.00033013,4]
[314910805,1708635063653,-711.07,0.00033013,4]
[314910806,1708635063662,-786.48,0.00033013,4]
[314910807,1708635063672,-606.92,0.00033013,4]
[314910808,1708635063682,-500.0,0.00033013,4]
[314910809,1708635063691,-556.48,0.00033013,4]
[314910810,1708635063701,-648.51,0.00033013,4]
[314910811,1708635063711,-500.0,0.00033013,4]
[314910812,1708635063720,-1225.73,0.00033013,4]
[314910813,1708635063730,-951.04,0.00033013,4]
[314910814,1708635063741,-9061.28,0.00033013,4]
[314910815,1708635063752,-500.0,0.00033013,4]
[314910816,1708635063763,-500.0,0.00033013,4]
[314910817,1708635063786,-151.0,0.00033013,7]
[314910818,1708635063796,-500.0,0.00033013,4]
[314910819,1708635063807,-151.0,0.00033013,7]
[314910820,1708635063818,-707.0,0.00033013,4]
[314910821,1708635063829,-500.0,0.00033013,4]
[314910822,1708635063839,-3571.58,0.00033013,4]
[314910823,1708635063850,-500.0,0.00033013,4]
[314910824,1708635063860,-1462.09,0.00033013,4]
[314910825,1708635063871,-500.0,0.00033013,4]
[314910826,1708635063881,-586.07,0.00033013,4]
[314910827,1708635063892,-500.0,0.00033013,4]
[314910828,1708635063902,-769.27,0.00033013,4]
[314910829,1708635063913,-500.0,0.00033013,4]
[314910830,1708635063923,-2191.4,0.00033013,4]
[314910831,1708635063934,-500.0,0.00033013,4]
[314910832,1708635063944,-500.0,0.00033013,4]
[314910833,1708635063954,-500.0,0.00033013,4]
[314910834,1708635063964,-500.0,0.00033013,4]
[314910835,1708635063975,-500.0,0.00033013,4]
[314910836,1708635063986,-500.0,0.00033013,4]
[314910837,1708635063996,-705.27,0.00033013,4]
[314910838,1708635064006,-3622.53,0.00033013,4]
[314910839,1708635064017,-500.0,0.00033013,4]
[314910840,1708635064027,-649.79,0.00033013,4]
[314910841,1708635064038,-198.38124304,0.00033013,4]
[314910842,1708635064048,-500.0,0.00033013,4]
[314910843,1708635064058,-500.0,0.00033013,4]
[314910844,1708635064069,-1718.53,0.00033013,4]
[314910845,1708635064079,-7809.56,0.00033013,4]
[314910846,1708635064089,-500.0,0.00033013,4]
[314910847,1708635064099,-500.0,0.00033013,4]
[314910848,1708635064110,-500.0,0.00033013,4]
[314910849,1708635064120,-500.0,0.00033013,4]
[314910850,1708635064131,-663.66,0.00033013,4]
[314910851,1708635064141,-500.0,0.00033013,4]
[314910852,1708635064152,-500.0,0.00033013,4]
[314910853,1708635064165,-863.66,0.00033013,4]
[314910854,1708635064176,-565.87,0.00033013,4]
[314910855,1708635064186,-822.21,0.00033013,4]
[314910856,1708635064200,-500.0,0.00033013,4]
[314910857,1708635064212,-500.0,0.00033013,4]
[314910858,1708635064223,-596.29,0.00033013,4]
[314910859,1708635064236,-621.0,0.00033013,4]
[314910860,1708635064246,-1374.74,0.00033013,4]
[314910861,1708635064257,-500.0,0.00033013,4]
[314910862,1708635064267,-500.0,0.00033013,4]
[314910863,1708635064278,-500.0,0.00033013,4]
[314910864,1708635064289,-500.0,0.00033013,4]
[314910865,1708635064300,-500.0,0.00033013,4]
[314910866,1708635064313,-500.0,0.00033013,4]
[314910867,1708635064324,-3131.59,0.00033013,4]
[314910868,1708635064334,-500.0,0.00033013,4]
[314910869,1708635064344,-1147.26,0.00033013,4]
[314910870,1708635064354,-677.08,0.00033013,4]
[314910871,1708635064364,-3274.02,0.00033013,4]
[314910872,1708635064375,-500.0,0.00033013,4]
[314910873,1708635064385,-296.76226624,0.00033013,4]
[314910874,1708635064395,-1054.45,0.00033013,4]
[314910875,1708635064405,-999.49,0.00033013,4]
[314910876,1708635064415,-500.0,0.00033013,4]
[314910877,1708635064425,-500.0,0.00033013,4]
[314910878,1708635064436,-500.0,0.00033013,4]
[314910879,1708635064446,-500.0,0.00033013,4]
[314910880,1708635064456,-866.0,0.00033013,4]
[314910881,1708635064472,-865.21,0.00033013,4]
[314910882,1708635064482,-1560.01,0.00033013,4]
[314910883,1708635064493,-500.0,0.00033013,4]
[314910884,1708635064505,-500.0,0.00033013,4]
[314910885,1708635064515,-500.0,0.00033013,4]
[314910886,1708635064526,-673.3,0.00033013,4]
[314910887,1708635064537,-500.0,0.00033013,4]
[314910888,1708635064547,-500.0,0.00033013,4]
[314910889,1708635064557,-500.0,0.00033013,4]
[314910890,1708635064568,-619.0,0.00033013,4]
[314910891,1708635064578,-1829.04,0.00033013,4]
[314910892,1708635064588,-1284.61,0.00033013,4]
[314910893,1708635064599,-552.59,0.00033013,4]
[314910894,1708635064610,-1010.16,0.00033013,4]
[314910895,1708635064620,-500.0,0.00033013,4]
[314910896,1708635064631,-503.87,0.00033013,4]
[314910897,1708635064642,-1466.13,0.00033013,4]
[314910898,1708635064653,-770.69,0.00033013,4]
[314910899,1708635064663,-500.0,0.00033013,4]
[314910900,1708635064673,-1490.17,0.00033013,2]
[314910901,1708635064684,-646.378249,0.00033013,7]
[314910902,1708635064695,-646.378249,0.00033013,7]
[314910903,1708635064705,-507.34,0.00033013,4]
[314910904,1708635064716,-500.0,0.00033013,4]
[314910905,1708635064727,-646.378249,0.00033013,7]
[314910906,1708635064737,-646.378249,0.00033013,7]
[314910907,1708635064749,-157.984588,0.00033013,7]
[314910908,1708635064769,-157.984588,0.00033013,7]
[314910909,1708635064781,-1118.23,0.00033013,4]
[314910910,1708635064791,-157.984588,0.00033013,7]
[314910911,1708635065118,-157.984588,0.00033013,7]
[314910912,1708635065142,-500.0,0.00033013,4]
[314910913,1708635065152,-487.68391332,0.0003305,2]
[314910914,1708635065163,-157.0,0.00033052,2]
[314910915,1708635065173,-157.35,0.00033077,2]
[314910916,1708635065183,-151.89,0.00033079,2]
[314910917,1708635065193,-2645.67,0.00033106,2]
[314910918,1708635065204,-4090.39773813,0.00033113,2]
[314910919,1708635065213,-1232.83217178,0.00033116,5]
[314910920,1708635065223,-345.71,0.00033119,2]
[314910921,1708635065234,-151.0,0.00033127,7]
[314910922,1708635065243,-4075.1532242,0.00033127,2]
[314910923,1708635065254,-91503.3090415,0.00033127,2]
[314910924,1708635065263,-151.0,0.00033127,7]
[314910925,1708635065273,-5098.7970539,0.00033127,2]
[314910926,1708635065283,-3893.708996,0.00033133,2]
[314910927,1708635065293,-355.462429,0.00033133,2]
[314910928,1708635065302,-3893.708996,0.00033133,2]
[314910929,1708635065312,-626.758522,0.00033133,2]
[314910930,1708635065322,-5090.418261,0.00033133,2]
[314910931,1708635065331,-3036.868378,0.00033133,2]
[314910932,1708635065341,-500.0,0.0003315,4]
[314910933,1708635065351,-500.0,0.0003315,10]
[314910934,1708635065361,-500.0,0.0003315,4]
[314910935,1708635065371,-500.0,0.0003315,4]
[314910936,1708635065381,-500.0,0.0003315,4]
[314910937,1708635065390,-500.0,0.0003315,4]
[314910938,1708635065403,-500.0,0.0003315,4]
[314910939,1708635065414,-510.04556966,0.0003315,4]
[314910940,1708635065424,-500.0,0.0003315,4]
[314910941,1708635065434,-500.0,0.0003315,4]
[314910942,1708635065445,-500.0,0.0003315,4]
[314910943,1708635065455,-500.0,0.0003315,4]
[314910944,1708635065466,-500.0,0.0003315,4]
[314910945,1708635065477,-500.0,0.0003315,4]
[314910946,1708635065488,-500.0,0.0003315,4]
[314910947,1708635065498,-500.0,0.0003315,4]
[314910948,1708635065508,-500.0,0.0003315,4]
[314910949,1708635065519,-500.0,0.0003315,4]
[314910950,1708635065529,-552.65515387,0.0003315,4]
[314910951,1708635065539,-500.0,0.0003315,4]
[314910952,1708635065549,-500.0,0.0003315,4]
[314910953,1708635065560,-577.30552257,0.0003315,4]
[314910954,1708635065571,-500.0,0.0003315,4]
[314910955,1708635065581,-500.0,0.0003315,4]
[314910956,1708635065591,-500.0,0.0003315,4]
[314910957,1708635065602,-500.0,0.0003315,4]
[314910958,1708635065612,-500.0,0.0003315,4]
[314910959,1708635065622,-500.0,0.0003315,4]
[314910960,1708635065632,-500.0,0.0003315,4]
[314910961,1708635065644,-500.0,0.0003315,4]
[314910962,1708635065655,-500.0,0.0003315,4]
[314910963,1708635065665,-500.0,0.0003315,4]
[314910964,1708635065675,-500.0,0.0003315,4]
[314910965,1708635065689,-500.0,0.0003315,4]
[314910966,1708635065698,-500.0,0.0003315,4]
[314910967,1708635065708,-500.0,0.0003315,4]
[314910968,1708635065718,-500.0,0.0003315,4]
[314910969,1708635065729,-500.0,0.0003315,4]
[314910970,1708635065740,-500.0,0.0003315,4]
[314910971,1708635065755,-1069.76,0.0003315,4]
[314910972,1708635065767,-750.5,0.0003315,4]
[314910973,1708635065777,-435.84492131,0.0003315,4]
[314910974,1708635065787,-500.0,0.0003315,4]
[314910975,1708635065798,-994.15,0.0003315,4]
[314910976,1708635065808,-500.0,0.0003315,4]
[314910977,1708635065819,-500.0,0.0003315,4]
[314910978,1708635065829,-734.37,0.0003315,4]
[314910979,1708635065841,-500.0,0.0003315,4]
[314910980,1708635065852,-500.0,0.0003315,4]
[314910981,1708635065862,-500.0,0.0003315,4]
[314910982,1708635065872,-500.0,0.0003315,4]
[314910983,1708635065882,-500.0,0.0003315,4]
[314910984,1708635065894,-500.0,0.0003315,4]
[314910985,1708635065905,-500.0,0.0003315,4]
[314910986,1708635065915,-500.0,0.0003315,4]
[314910987,1708635065925,-500.0,0.0003315,4]
[314910988,1708635065937,-500.0,0.0003315,4]
[314910989,1708635065947,-342.52749757,0.0003315,4]
[314910990,1708635065958,-500.0,0.0003315,4]
[314910991,1708635065968,-500.0,0.0003315,4]
[314910992,1708635065978,-500.0,0.0003315,4]
[314910993,1708635065987,-500.0,0.0003315,4]
[314910994,1708635065997,-500.0,0.0003315,4]
[314910995,1708635066007,-500.0,0.0003315,4]
[314910996,1708635066017,-500.0,0.0003315,4]
[314910997,1708635066027,-500.0,0.0003315,4]
[314910998,1708635066037,-500.0,0.0003315,4]
[314910999,1708635066047,-500.0,0.0003315,4]
[314911000,1708635066057,-500.0,0.0003315,4]
[314911001,1708635066067,-500.0,0.0003315,4]
[314911002,1708635066077,-500.0,0.0003315,4]
[314911003,1708635066087,-753.95,0.0003315,4]
[314911004,1708635066097,-500.0,0.0003315,4]
[314911005,1708635066107,-500.0,0.0003315,4]
[314911006,1708635066116,-500.0,0.0003315,4]
[314911007,1708635066126,-720.02,0.0003315,4]
[314911008,1708635066136,-500.0,0.0003315,4]
[314911009,1708635066147,-1000.0,0.0003315,7]
[314911010,1708635066157,-500.0,0.0003315,4]
[314911011,1708635066166,-500.0,0.0003315,4]
[314911012,1708635066176,-500.0,0.0003315,4]
[314911013,1708635066186,-500.0,0.0003315,4]
[314911014,1708635066196,-630.9,0.0003315,4]
[314911015,1708635066206,-565.85,0.0003315,4]